fUSD/lending_fUSD_20250602
["ID","MTS","AMOUNT","RATE_DAILY","PERIOD"]
[363760500,1748863841036,-420.0,0.00019863,2]
[363760502,1748863841046,-420.0,0.00019863,2]
[363760504,1748863841056,-540.5,0.00019863,2]
[363760506,1748863841066,-420.0,0.00019863,2]
[363760508,1748863841075,-8967.04,0.00019863,2]
[363760510,1748863841085,-4087.99,0.00019863,2]
[363760513,1748863841095,-537.54,0.00019863,2]
[363760515,1748863841105,-561.81,0.00019863,2]
[363760517,1748863841114,-420.0,0.00019863,2]
[363760519,1748863841125,-739.85,0.00019863,2]
[363760521,1748863841135,-747.62,0.00019863,2]
[363760523,1748863841144,-420.0,0.00019863,2]
[363760525,1748863841155,-420.0,0.00019863,2]
[363760526,1748863841164,-976.1,0.00019863,2]
[363760528,1748863841173,-367.01107778,0.00019863,2]
[363760530,1748863841183,-1238.52,0.00019863,2]
[363760533,1748863841203,-420.0,0.00019863,2]
[363760535,1748863841215,-420.0,0.00019863,2]
[363760537,1748863841225,-634.42,0.00019863,2]
[363760539,1748863841235,-420.0,0.00019863,2]
[363760541,1748863841249,-1789.33,0.00019863,2]
[363760543,1748863841259,-994.08,0.00019863,2]
[363760545,1748863841269,-420.0,0.00019863,2]
[363760547,1748863841279,-420.0,0.00019863,2]
[363760549,1748863841290,-420.0,0.00019863,2]
[363760551,1748863841300,-420.0,0.00019863,2]
[363760553,1748863841311,-420.0,0.00019863,2]
[363760555,1748863841322,-1691.37,0.00019863,2]
[363760557,1748863841332,-801.0,0.00019874,2]
[363760559,1748863841342,-1467.0,0.00019874,2]
[363760561,1748863841352,-635.0,0.00019874,2]
[363760563,1748863841363,-588.0,0.00019874,2]
[363760565,1748863841373,-1271.0,0.00019874,2]
[363760567,1748863841383,-557.0,0.00019874,2]
[363760569,1748863841394,-925.0,0.00019874,2]
[363760571,1748863841403,-1157.0,0.00019874,2]
[363760573,1748863841413,-943.0,0.00019874,2]
[363760575,1748863841423,-4075.0,0.00019874,2]
[363760577,1748863841433,-7010.0,0.00019874,2]
[363760579,1748863841443,-39225.12912108,0.0001988,2]
[363760581,1748863841453,-168.35381065,0.0001989,2]
[363760583,1748863841462,-500.0,0.00019893,2]
[363760585,1748863841471,-270.56684431,0.00019893,2]
[363760587,1748863841481,-761.420843,0.00019896,2]
[363760589,1748863841491,-356.1193227,0.00019896,2]
[363760591,1748863841501,-323.68357902,0.000199,3]
[363760593,1748863841510,-216.35870173,0.000199,2]
[363760595,1748863841520,-434.545005,0.000199,7]
[363760597,1748863841529,-205.64641003,0.000199,3]
[363760599,1748863841540,-12500.0,0.0001997,2]
[363760601,1748863841550,-45662.14107992,0.00019971,2]
[363760603,1748863841560,-500.0,0.00019973,2]
[363760605,1748863841570,-500.0,0.00019973,2]
[363760615,1748863841659,-168.05569613,0.00019973,2]
[363760617,1748863841669,-500.0,0.00019973,2]
[363760619,1748863841679,-500.0,0.00019973,2]
[363760621,1748863841688,-500.0,0.00019973,2]
[363760623,1748863841697,-500.0,0.00019973,2]
[363760625,1748863841708,-500.0,0.00019973,2]
[363760626,1748863841719,-150.0,0.00019973,2]
[363760629,1748863841729,-150.0,0.00019973,2]
[363760631,1748863841738,-500.0,0.00019973,2]
[363760632,1748863841748,-500.0,0.00019973,2]
[363760634,1748863841757,-500.0,0.00019973,2]
[363760636,1748863841767,-150.0,0.00019973,2]
[363760638,1748863841776,-150.0,0.00019973,2]
[363760640,1748863841785,-239.20030911,0.00019973,2]
[363760642,1748863841795,-500.0,0.00019973,2]
[363760644,1748863841804,-500.0,0.00019973,2]
[363760646,1748863841814,-500.0,0.00019973,2]
[363760648,1748863841824,-500.0,0.00019973,2]
[363760650,1748863841834,-150.0,0.00019973,2]
[363760652,1748863841844,-500.0,0.00019973,2]
[363760654,1748863841853,-150.0,0.00019973,2]
[363760656,1748863841862,-500.0,0.00019973,2]
[363760658,1748863841872,-166.02131732,0.00019973,2]
[363760659,1748863841881,-2181.0,0.00019973,2]
[363760661,1748863841891,-150.0,0.00019973,2]
[363760663,1748863841900,-154.52245518,0.00019973,2]
[363760665,1748863841910,-500.0,0.00019973,2]
[363760667,1748863841919,-500.0,0.00019973,2]
[363760669,1748863841929,-500.0,0.00019973,2]
[363760671,1748863841938,-150.0,0.00019973,2]
[363760673,1748863841948,-500.0,0.00019973,2]
[363760675,1748863841958,-150.0,0.00019973,2]
[363760677,1748863841968,-194.49894395,0.00019973,2]
[363760679,1748863841977,-500.0,0.00019973,2]
[363760681,1748863841987,-150.0,0.00019973,2]
[363760683,1748863841997,-12500.0,0.00019979,2]
[363760685,1748863842007,-192.77793536,0.00019986,2]
[363760687,1748863842017,-12500.0,0.00019988,2]
[363760689,1748863842027,-500.0,0.0001999,2]
[363760691,1748863842036,-192.77793536,0.0001999,2]
[363760693,1748863842046,-5800.0,0.00019992,2]
[363760695,1748863842056,-5800.0,0.00019992,2]
[363760697,1748863842066,-500.0,0.00019995,2]
[363760699,1748863842077,-500.0,0.00019995,2]
[363760701,1748863842088,-500.0,0.00019995,2]
[363760703,1748863842098,-500.0,0.00019995,2]
[363760705,1748863842108,-1005.0,0.00019996,2]
[363760707,1748863842118,-674069.6686698,0.00019996,2]
[363760709,1748863842127,-4335.1963705,0.00019996,2]
[363760711,1748863842136,-12058.16805,0.00019996,2]
[363760713,1748863842146,-303.40120378,0.00019999,2]
[363760715,1748863842155,-300.0,0.00019999,2]
[363760717,1748863842164,-300.0,0.00019999,2]
[363760719,1748863842174,-300.0,0.00019999,2]
[363760721,1748863842183,-300.0,0.00019999,2]
[363760723,1748863842192,-666.0,0.00019999,2]
[363760725,1748863842203,-300.0,0.00019999,2]
[363760727,1748863842213,-815.49176001,0.00019999,2]
[363760729,1748863842223,-597.07,0.00019999,2]
[363760731,1748863842232,-2560.37082522,0.00019999,2]
[363760733,1748863842247,-15141.90301677,0.00019999,2]
[363760735,1748863842256,-500.0,0.00019999,2]
[363760737,1748863842266,-500.0,0.00019999,2]
[363760739,1748863842276,-364.0434328,0.00019999,2]
[363760741,1748863842286,-222.38418659,0.00019999,2]
[363760743,1748863842295,-219.84545842,0.00019999,2]
[363760745,1748863842305,-423.17439862,0.00019999,2]
[363760747,1748863842314,-300.0,0.00019999,2]
[363760749,1748863842324,-107376.31244537,0.0002,2]
[363760750,1748863842335,-170.07377408,0.0002,4]
[363760752,1748863842344,-385334.27734546,0.0002,2]
[363760781,1748863842600,-2483.9722526,0.0002,2]
[363760783,1748863842613,-1854.03583047,0.0002,2]
[363760785,1748863842624,-904.91325516,0.0002,2]
[363760823,1748863843278,-420.0,0.00019178,2]
[363760824,1748863843288,-420.0,0.00019178,2]
[363760825,1748863843298,-522.3,0.00019315,2]
[363760827,1748863843308,-211.2,0.00019315,2]
[363760828,1748863843320,-1985.00821105,0.000199,2]
[363760833,1748863843345,-299.99,0.000199,2]
[363760835,1748863843743,-419.62449745,0.00019178,2]
[363760836,1748863843763,-0.37550255,0.00019178,2]
[363760837,1748863843774,-3931.62086486,0.000199,2]
[363760838,1748863843784,-150.0,0.00019973,2]
[363760839,1748863843795,-3361.56785964,0.00019983,2]
[363760840,1748863843806,-2438.43214036,0.00019983,2]
[363760841,1748863843816,-1304.44138622,0.0002,2]
[363760842,1748863843829,-83266.25069294,0.0002,2]
[363760843,1748863843840,-261.0,0.0002,2]
[363760844,1748863843850,-261.0,0.0002,2]
[363760845,1748863843861,-261.0,0.0002,2]
[363760846,1748863843871,-226.0,0.0002,2]
[363760847,1748863843881,-226.0,0.0002,2]
[363760848,1748863843892,-387.0,0.0002,2]
[363760849,1748863843902,-204.0,0.0002,2]
[363760850,1748863843913,-4065.67582925,0.0002,2]
[363760851,1748863843923,-155.41398979,0.0002,2]
[363760852,1748863843933,-1111222.61287964,0.0002,2]
[363760853,1748863843946,-521.85,0.0002,2]
[363760854,1748863844163,-564.27,0.00019178,2]
[363760855,1748863844173,-420.0,0.00019178,2]
[363760856,1748863844183,-155.0,0.00019846,2]
[363760857,1748863844193,-3415.439018,0.0002,2]
[363760858,1748863844287,-262.44822189,0.0002,2]
[363760866,1748863846040,-356.33291059,0.00019178,2]
[363760867,1748863846128,-63.66708941,0.00019178,2]
[363760868,1748863846138,-792.54,0.00019178,2]
[363760869,1748863846148,-420.0,0.00019315,2]
[363760870,1748863846159,-528.22357063,0.00019315,2]
[363760871,1748863846186,-264.31642937,0.00019315,2]
[363760872,1748863846197,-277.08,0.00019452,2]
[363760873,1748863846207,-198.7543241,0.00019452,2]
[363760874,1748863852182,568.14,0.00017239,2]
[363760879,1748864076521,1048.67,0.00019,2]
[363760885,1748864354152,-155.24753112,0.00019077,2]
[363760886,1748864354180,-400.0,0.00019078,2]
[363760887,1748864354206,-155.24753112,0.00019078,2]
[363760888,1748864354234,-400.0,0.00019135,2]
[363760889,1748864354260,-151.0,0.00019166,2]
[363760890,1748864354288,-207.4,0.00019166,2]
[363760891,1748864354313,-1200.0,0.00019177,2]
[363760892,1748864354338,-300.0,0.00019177,2]
[363760893,1748864354363,-200.0,0.00019177,2]
[363760894,1748864354389,-420.0,0.00019178,2]
[363760895,1748864354420,-420.0,0.00019178,2]
[363760896,1748864354636,-420.0,0.00019178,2]
[363760897,1748864354664,-420.0,0.00019178,2]
[363760898,1748864354692,-420.0,0.00019178,2]
[363760899,1748864354718,-420.0,0.00019178,2]
[363760900,1748864354745,-420.0,0.00019178,2]
[363760901,1748864354773,-420.0,0.00019178,2]
[363760902,1748864354800,-420.0,0.00019178,2]
[363760903,1748864354828,-420.0,0.00019178,2]
[363760904,1748864354856,-420.0,0.00019178,2]
[363760905,1748864354884,-420.0,0.00019178,2]
[363760906,1748864354911,-420.0,0.00019178,2]
[363760907,1748864354938,-420.0,0.00019178,2]
[363760908,1748864354965,-420.0,0.00019178,2]
[363760909,1748864354992,-175.90415592,0.00019178,2]
[363760910,1748864355022,-420.0,0.00019178,2]
[363760911,1748864355049,-420.0,0.00019178,2]
[363760912,1748864355077,-420.0,0.00019178,2]
[363760913,1748864355104,-414.58,0.00019178,2]
[363760914,1748864355131,-420.0,0.00019178,2]
[363760915,1748864355157,-218.38584408,0.00019178,2]
[363760916,1748864355185,-420.0,0.00019178,2]
[363760917,1748864355214,-420.0,0.00019178,2]
[363760918,1748864355244,-462.87,0.00019178,2]
[363760919,1748864355273,-311.9,0.00019178,2]
[363760920,1748864355300,-420.0,0.00019178,2]
[363760921,1748864355330,-166.64,0.00019178,2]
[363760922,1748864355358,-420.0,0.00019178,2]
[363760923,1748864355384,-420.0,0.00019178,2]
[363760924,1748864355415,-431.64,0.00019178,2]
[363760925,1748864355441,-420.0,0.00019178,2]
[363760926,1748864355469,-420.0,0.00019178,2]
[363760927,1748864355496,-420.0,0.00019178,2]
[363760928,1748864355527,-552.05674296,0.00019178,2]
[363760929,1748864355557,-420.0,0.00019178,2]
[363760930,1748864355587,-420.0,0.00019178,2]
[363760931,1748864355614,-420.0,0.00019178,2]
[363760932,1748864355644,-1185.4,0.00019178,2]
[363760933,1748864355672,-278.05592737,0.00019178,2]
[363760934,1748864355701,-420.0,0.00019178,2]
[363760935,1748864355729,-1321.6,0.00019178,2]
[363760936,1748864355756,-420.0,0.00019178,2]
[363760937,1748864355782,-420.0,0.00019178,2]
[363760938,1748864355809,-1599.34,0.00019178,2]
[363760939,1748864355836,-420.0,0.00019178,2]
[363760940,1748864355864,-420.0,0.00019178,2]
[363760941,1748864355890,-978.48,0.00019178,2]
[363760942,1748864355919,-1572.34,0.00019178,2]
[363760943,1748864355945,-420.0,0.00019178,2]
[363760944,1748864355971,-483.94,0.00019178,2]
[363760945,1748864355997,-184.62,0.00019178,2]
[363760946,1748864356026,-1105.65,0.00019178,2]
[363760947,1748864356055,-267.70226743,0.00019178,2]
[363760977,1748864401337,1000.0,0.00018617,2]
[363760979,1748864509105,179.31,0.00018501,2]
[363760981,1748864539674,242.58,0.00013699,2]
[363760982,1748864558420,3149.17,0.00018836,2]
[363760983,1748864712764,150.0,0.00018,2]
[363760984,1748864712804,150.0,0.000181,2]
[363760985,1748864712848,150.0,0.000182,2]
[363760986,1748864712891,150.0,0.000184,2]
[363760987,1748864712955,150.0,0.000183,2]
[363760988,1748864712999,150.0,0.000185,2]
[363760989,1748864713040,150.0,0.000186,2]
[363760990,1748864713076,150.0,0.000187,2]
[363760991,1748864713117,150.0,0.000188,2]
[363760992,1748864713163,150.0,0.000189,2]
[363760993,1748864713237,150.0,0.00019,2]
[363760994,1748864714107,150.0,0.00018,2]
[363760995,1748864714153,150.0,0.00018053,2]
[363760996,1748864714225,150.0,0.00018105,2]
[363760997,1748864714297,150.0,0.00018158,2]
[363760998,1748864714366,150.0,0.00018211,2]
[363760999,1748864714446,150.0,0.00018263,2]
[363761000,1748864714508,150.0,0.00018316,2]
[363761001,1748864714587,150.0,0.00018368,2]
[363761002,1748864714618,150.0,0.00018421,2]
[363761003,1748864714689,150.0,0.00018474,2]
[363761004,1748864714746,150.0,0.00018526,2]
[363761005,1748864714805,150.0,0.00018579,2]
[363761006,1748864714882,150.0,0.00018632,2]
[363761007,1748864714950,150.0,0.00018684,2]
[363761008,1748864715020,150.0,0.00018737,2]
[363761009,1748864715093,150.0,0.00018789,2]
[363761010,1748864715176,150.0,0.00018842,2]
[363761011,1748864715236,150.0,0.00018895,2]
[363761012,1748864715316,150.0,0.00018947,2]
[363761013,1748864715376,150.0,0.00019,2]
[363761014,1748864716847,150.0,0.00018,2]
[363761015,1748864716925,150.0,0.00018041,2]
[363761016,1748864716991,150.0,0.00018082,2]
[363761017,1748864717065,150.0,0.00018122,2]
[363761018,1748864717133,150.0,0.00018163,2]
[363761019,1748864717200,150.0,0.00018204,2]
[363761020,1748864717268,150.0,0.00018245,2]
[363761021,1748864717360,150.0,0.00018327,2]
[363761022,1748864717476,150.0,0.00018286,2]
[363761023,1748864717511,150.0,0.00018367,2]
[363761024,1748864717550,150.0,0.00018408,2]
[363761025,1748864717623,150.0,0.00018449,2]
[363761026,1748864717689,150.0,0.0001849,2]
[363761027,1748864717764,150.0,0.00018531,2]
[363761028,1748864717852,150.0,0.00018571,2]
[363761029,1748864717917,150.0,0.00018612,2]
[363761030,1748864717976,150.0,0.00018653,2]
[363761031,1748864718055,150.0,0.00018694,2]
[363761032,1748864718142,150.0,0.00018735,2]
[363761033,1748864718188,150.0,0.00018776,2]
[363761034,1748864718264,150.0,0.00018816,2]
[363761035,1748864718333,150.0,0.00018857,2]
[363761036,1748864718654,150.0,0.00018898,2]
[363761037,1748864718693,150.0,0.00018939,2]
[363761038,1748864718736,150.0,0.0001898,2]
[363761039,1748864727674,150.0,0.00018,2]
[363761040,1748864727730,150.0,0.000182,2]
[363761041,1748864727801,150.0,0.000184,2]
[363761042,1748864727830,150.0,0.000186,2]
[363761043,1748864727890,150.0,0.000188,2]
[363761044,1748864727964,150.0,0.00019,2]
[363761045,1748864729741,150.0,0.00018,2]
[363761046,1748864729813,150.0,0.00018133,2]
[363761047,1748864729888,150.0,0.000184,2]
[363761048,1748864730167,150.0,0.00018533,2]
[363761049,1748864730198,150.0,0.00018267,2]
[363761050,1748864730312,150.0,0.00018667,2]
[363761051,1748864730351,150.0,0.000188,2]
[363761052,1748864730395,150.0,0.00018933,2]
[363761053,1748864731882,150.0,0.00018,2]
[363761054,1748864731937,150.0,0.00018154,2]
[363761055,1748864732004,150.0,0.00018308,2]
[363761056,1748864732042,150.0,0.00018462,2]
[363761057,1748864732097,150.0,0.00018615,2]
[363761058,1748864732179,150.0,0.00018769,2]
[363761059,1748864732239,150.0,0.00018923,2]
[363761060,1748864734132,150.0,0.00018,2]
[363761061,1748864734172,150.0,0.00018667,2]
[363761062,1748864737002,150.0,0.00018,2]
[363761064,1748864773995,150.0,0.00018488,2]
[363761068,1748864798608,5677.0,0.00023,30]
[363761069,1748864812571,570.0,0.00016306,2]
[363761070,1748864812804,570.0,0.0001857,2]
[363761085,1748865012518,10476.56,0.00018206,2]
[363761089,1748865032011,-150.0,0.0001902,2]
[363761090,1748865032021,-400.0,0.00019037,2]
[363761091,1748865032030,-150.0,0.00019053,2]
[363761092,1748865032040,-400.0,0.00019056,2]
[363761093,1748865032050,-150.0,0.00019061,2]
[363761094,1748865032059,-150.0,0.00019067,2]
[363761095,1748865032068,-34.55,0.00019077,2]
[363761096,1748865032167,-115.45,0.00019077,2]
[363761097,1748865032177,-300.0,0.00019077,2]
[363761098,1748865032187,-155.10157139,0.00019077,2]
[363761112,1748865032776,-1044.89842861,0.00019077,2]
[363761113,1748865032785,-584.04523672,0.00019078,2]
[363761114,1748865032794,-2509.09676308,0.00019078,2]
[363761115,1748865032808,-1305.0,0.00019078,2]
[363761116,1748865032819,-1486.24894322,0.00019078,2]
[363761118,1748865032842,-3504.87459727,0.00019078,2]
[363761119,1748865032851,-150.0,0.000191,2]
[363761121,1748865032861,-150.0,0.00019102,2]
[363761122,1748865032869,-150.0,0.00019105,2]
[363761124,1748865032879,-150.0,0.00019143,2]
[363761126,1748865032888,-150.0,0.00019158,2]
[363761128,1748865032898,-207.4,0.00019166,2]
[363761130,1748865032907,-151.0,0.00019166,2]
[363761132,1748865032916,-473.88,0.00019168,2]
[363761134,1748865032926,-8805.2203035,0.00019169,2]
[363761135,1748865032935,-421.28,0.00019178,2]
[363761137,1748865032943,-420.0,0.00019178,2]
[363761139,1748865032953,-420.0,0.00019178,2]
[363761141,1748865032962,-330.94,0.00019178,2]
[363761143,1748865032971,-465.6,0.00019178,2]
[363761145,1748865032981,-420.0,0.00019178,2]
[363761147,1748865032991,-369.8,0.00019178,2]
[363761149,1748865033000,-467.52,0.00019178,2]
[363761151,1748865033009,-552.34,0.00019178,2]
[363761153,1748865033018,-420.0,0.00019178,2]
[363761154,1748865033027,-466.94,0.00019178,2]
[363761156,1748865033037,-420.0,0.00019178,2]
[363761158,1748865033048,-420.0,0.00019178,2]
[363761160,1748865033060,-420.0,0.00019178,2]
[363761162,1748865033070,-420.0,0.00019178,2]
[363761164,1748865033081,-519.09,0.00019178,2]
[363761166,1748865033092,-420.0,0.00019178,2]
[363761168,1748865033103,-406.75,0.00019178,2]
[363761170,1748865033113,-420.0,0.00019178,2]
[363761172,1748865033123,-420.0,0.00019178,2]
[363761174,1748865033133,-420.0,0.00019178,2]
[363761176,1748865033142,-420.0,0.00019178,2]
[363761178,1748865033152,-420.0,0.00019178,2]
[363761180,1748865033162,-420.0,0.00019178,2]
[363761182,1748865033172,-367.89424968,0.00019178,2]
[363761184,1748865033182,-280.98,0.00019178,2]
[363761186,1748865033191,-229.90311892,0.00019178,2]
[363761188,1748865033202,-420.0,0.00019178,2]
[363761190,1748865033211,-523.8,0.00019178,2]
[363761192,1748865033221,-420.0,0.00019178,2]
[363761194,1748865033232,-420.0,0.00019178,2]
[363761196,1748865033241,-420.0,0.00019178,2]
[363761198,1748865033251,-420.0,0.00019178,2]
[363761200,1748865033261,-420.0,0.00019178,2]
[363761201,1748865033271,-420.0,0.00019178,2]
[363761203,1748865033281,-420.0,0.00019178,2]
[363761205,1748865033291,-386.29484802,0.00019178,2]
[363761208,1748865033303,-412.84,0.00019178,2]
[363761209,1748865033313,-420.0,0.00019178,2]
[363761211,1748865033323,-420.0,0.00019178,2]
[363761213,1748865033333,-420.0,0.00019178,2]
[363761215,1748865033343,-420.0,0.00019178,2]
[363761217,1748865033353,-420.0,0.00019178,2]
[363761219,1748865033363,-420.0,0.00019178,2]
[363761221,1748865033373,-420.0,0.00019178,2]
[363761223,1748865033383,-420.0,0.00019178,2]
[363761225,1748865033393,-420.0,0.00019178,2]
[363761227,1748865033402,-420.0,0.00019178,2]
[363761229,1748865033411,-420.0,0.00019178,2]
[363761231,1748865033421,-420.0,0.00019178,2]
[363761232,1748865033431,-420.0,0.00019178,2]
[363761234,1748865033440,-420.0,0.00019178,2]
[363761236,1748865033450,-444.68842794,0.00019178,2]
[363761238,1748865033459,-420.0,0.00019178,2]
[363761240,1748865033469,-420.0,0.00019178,2]
[363761242,1748865033479,-420.0,0.00019178,2]
[363761244,1748865033489,-1469.18,0.00019178,2]
[363761246,1748865033499,-420.0,0.00019178,2]
[363761248,1748865033509,-420.0,0.00019178,2]
[363761250,1748865033519,-271.08,0.00019178,2]
[363761252,1748865033529,-420.0,0.00019178,2]
[363761254,1748865033539,-420.0,0.00019178,2]
[363761256,1748865033548,-420.0,0.00019178,2]
[363761258,1748865033558,-420.0,0.00019178,2]
[363761260,1748865033568,-420.0,0.00019178,2]
[363761262,1748865033578,-420.0,0.00019178,2]
[363761264,1748865033588,-420.0,0.00019178,2]
[363761266,1748865033598,-420.0,0.00019178,2]
[363761268,1748865033608,-420.0,0.00019178,2]
[363761270,1748865033618,-420.0,0.00019178,2]
[363761272,1748865033628,-420.0,0.00019178,2]
[363761274,1748865033637,-420.0,0.00019178,2]
[363761276,1748865033647,-564.94,0.00019178,2]
[363761277,1748865033657,-420.0,0.00019178,2]
[363761279,1748865033670,-420.0,0.00019178,2]
[363761282,1748865033682,-420.0,0.00019178,2]
[363761283,1748865033692,-420.0,0.00019178,2]
[363761285,1748865033702,-445.5,0.00019178,2]
[363761288,1748865033715,-428.54,0.00019178,2]
[363761289,1748865033724,-420.0,0.00019178,2]
[363761291,1748865033734,-420.0,0.00019178,2]
[363761293,1748865033746,-420.0,0.00019178,2]
[363761295,1748865033756,-420.0,0.00019178,2]
[363761297,1748865033767,-420.0,0.00019178,2]
[363761299,1748865033777,-506.04,0.00019178,2]
[363761301,1748865033787,-420.0,0.00019178,2]
[363761303,1748865033797,-420.0,0.00019178,2]
[363761305,1748865033806,-420.0,0.00019178,2]
[363761307,1748865033815,-420.0,0.00019178,2]
[363761309,1748865033825,-156.01924857,0.00019178,2]
[363761715,1748865037952,-263.98075143,0.00019178,2]
[363761717,1748865037962,-420.0,0.00019178,2]
[363761719,1748865037971,-316.74240548,0.00019178,2]
[363761721,1748865037981,-420.0,0.00019178,2]
[363761723,1748865037990,-420.0,0.00019178,2]
[363761725,1748865038000,-420.0,0.00019178,2]
[363761727,1748865038009,-420.0,0.00019178,2]
[363761729,1748865038019,-420.0,0.00019178,2]
[363761731,1748865038028,-420.0,0.00019178,2]
[363761733,1748865038038,-240.44,0.00019178,2]
[363761735,1748865038047,-316.8,0.00019178,2]
[363761736,1748865038057,-512.74,0.00019178,2]
[363761738,1748865038066,-420.0,0.00019178,2]
[363761740,1748865038075,-62.64133007,0.00019178,2]
[363761745,1748865038110,-357.35866993,0.00019178,2]
[363761747,1748865038119,-420.0,0.00019178,2]
[363761749,1748865038129,-420.0,0.00019178,2]
[363761751,1748865038139,-420.0,0.00019178,2]
[363761753,1748865038148,-420.0,0.00019178,2]
[363761755,1748865038158,-420.0,0.00019178,2]
[363761757,1748865038167,-345.84133007,0.00019178,2]
[363761759,1748865038182,-74.15866993,0.00019178,2]
[363761762,1748865038193,-158.52,0.00019178,2]
[363761763,1748865038202,-339.10743007,0.00019178,2]
[363761769,1748865038313,-80.89256993,0.00019178,2]
[363761770,1748865038323,-420.0,0.00019178,2]
[363761771,1748865038332,-420.0,0.00019178,2]
[363761772,1748865038342,-420.0,0.00019178,2]
[363761774,1748865038352,-363.2,0.00019178,2]
[363761776,1748865038362,-271.169634,0.00019178,2]
[363761778,1748865038371,-453.1,0.00019178,2]
[363761780,1748865038382,-378.92662748,0.00019178,2]
[363761782,1748865038393,-41.07337252,0.00019178,2]
[363761784,1748865038403,-420.0,0.00019178,2]
[363761786,1748865038413,-420.0,0.00019178,2]
[363761788,1748865038422,-420.0,0.00019178,2]
[363761790,1748865038431,-420.0,0.00019178,2]
[363761792,1748865038441,-420.0,0.00019178,2]
[363761794,1748865038450,-420.0,0.00019178,2]
[363761796,1748865038460,-420.0,0.00019178,2]
[363761798,1748865038469,-420.0,0.00019178,2]
[363761800,1748865038478,-420.0,0.00019178,2]
[363761802,1748865038487,-420.0,0.00019178,2]
[363761804,1748865038497,-420.0,0.00019178,2]
[363761806,1748865038506,-230.47506645,0.00019178,2]
[363761812,1748865038567,-189.52493355,0.00019178,2]
[363761814,1748865038577,-420.0,0.00019178,2]
[363761816,1748865038586,-420.0,0.00019178,2]
[363761818,1748865038595,-420.0,0.00019178,2]
[363761820,1748865038605,-420.0,0.00019178,2]
[363761822,1748865038614,-420.0,0.00019178,2]
[363761824,1748865038623,-420.0,0.00019178,2]
[363761826,1748865038633,-501.64,0.00019178,2]
[363761828,1748865038642,-420.0,0.00019178,2]
[363761830,1748865038651,-420.0,0.00019178,2]
[363761832,1748865038661,-324.58,0.00019178,2]
[363761834,1748865038675,-420.0,0.00019178,2]
[363761836,1748865038685,-420.0,0.00019178,2]
[363761838,1748865038694,-420.0,0.00019178,2]
[363761840,1748865038704,-420.0,0.00019178,2]
[363761842,1748865038715,-420.0,0.00019178,2]
[363761844,1748865038725,-410.0,0.00019178,2]
[363761847,1748865038734,-420.0,0.00019178,2]
[363761849,1748865038745,-420.0,0.00019178,2]
[363761851,1748865038754,-373.14,0.00019178,2]
[363761853,1748865038763,-420.0,0.00019178,2]